bitfinex-derivatives/quotes_SOLF0:USTF0_20251228
["timestamp","ask_amount","ask_price","bid_price","bid_amount"]
[1766926893418,11.48022993,124.47,124.43,0.0549806]
[1766926894622,7.237,124.46,124.43,0.0549806]
[1766926911833,18.017,124.46,124.43,0.0549806]
[1766926914735,7.237,124.46,124.43,0.0549806]
[1766926919033,10.84022993,124.47,124.43,0.0549806]
[1766926921139,0.06022993,124.47,124.43,10.9649806]
[1766926921438,0.0094129,124.47,124.43,10.9649806]
[1766926928241,10.78,124.49,124.44,10.91]
[1766926929343,0.05285291,124.48,124.44,10.91]
[1766926931243,0.05285291,124.48,124.44,18.1481]
[1766926931443,0.05285291,124.48,124.45,10.91]
[1766926936752,0.05285291,124.48,124.43,11.0449806]
[1766926959655,18.72875291,124.48,124.43,11.0449806]
[1766926991686,7.28875291,124.48,124.43,11.0449806]
[1766926991887,0.05285291,124.48,124.43,11.0449806]
[1766926997088,0.05285291,124.48,124.43,18.2836806]
[1766926997589,0.05285291,124.48,124.44,9.59]
[1766926998392,105.09,124.5,124.45,9.59]
[1766926998689,112.304,124.52,124.45,9.59]
[1766926998990,112.304,124.52,124.46,9.59]
[1766926999380,0.05095147,124.5,124.48,0.06120211]
[1766927003490,105.07,124.52,124.48,0.06120211]
[1766927003793,105.07,124.52,124.48,9.65120211]
[1766927003995,10.13,124.53,124.48,9.65120211]
[1766927004393,0.05712673,124.52,124.48,9.65120211]
[1766927007789,10.13,124.54,124.48,9.65120211]
[1766927008794,0.05402654,124.52,124.48,9.65120211]
[1766927009704,0.05402654,124.52,124.48,16.88700211]
[1766927009893,0.05402654,124.52,124.49,9.59]
[1766927014501,0.00402654,124.52,124.5,9.59]
[1766927017704,0.00402654,124.52,124.5,16.8246]
[1766927017913,0.00402654,124.52,124.51,9.59]
[1766927024393,0.00402654,124.52,124.51,16.8241]
[1766927052128,0.00402654,124.52,124.51,111.7041]
[1766927069836,0.00402654,124.52,124.51,94.88]
[1766927072138,0.00402654,124.52,124.51,104.91116916]
[1766927076838,0.00402654,124.52,124.51,120.92526916]
[1766927077141,9.38,124.57,124.52,8.78]
[1766927077340,9.38,124.57,124.52,18.80920086]
[1766927078142,0.05407231,124.56,124.52,18.80920086]
[1766927078543,0.05407231,124.56,124.52,26.04260086]
[1766927084449,0.05407231,124.56,124.53,0.29090743]
[1766927085156,0.05407231,124.56,124.53,0.34799314]
[1766927104374,0.05407231,124.56,124.53,7.58069314]
[1766927104572,0.05407231,124.56,124.54,9.34]
[1766927106474,0.05407231,124.56,124.54,104.22]
[1766927107775,0.05407231,124.56,124.54,111.4522]
[1766927109683,0.05407231,124.56,124.55,16.5717]
[1766927114175,0.05407231,124.56,124.53,19.42628657]
[1766927114377,0.05407231,124.56,124.53,114.28628657]
[1766927114583,0.05407231,124.56,124.53,104.25708571]
[1766927119298,0.05407231,124.56,124.53,111.48998571]
[1766927119588,0.05407231,124.56,124.54,8.89]
[1766927130597,0.05407231,124.56,124.54,94.86]
[1766927131386,0.05407231,124.56,124.53,94.91708571]
[1766927136785,0.05407231,124.56,124.53,103.80708571]
[1766927148503,0.05407231,124.56,124.54,9.29]
[1766927149705,0.05407231,124.56,124.54,16.5222]
[1766927150612,0.05407231,124.56,124.54,26.55140086]
[1766927151409,0.05407231,124.56,124.55,9.11]
[1766927161111,0.05407231,124.56,124.55,16.3417]
[1766927164419,0.05407231,124.56,124.55,26.37090086]
[1766927165211,0.05407231,124.56,124.55,16.3417]
[1766927165919,8.76,124.66,124.6,9.11]
[1766927166118,8.76,124.66,124.61,103.97]
[1766927166318,8.76,124.66,124.61,9.11]
[1766927166621,8.76,124.66,124.62,94.86]
[1766927167012,0.06060254,124.65,124.62,94.86]
[1766927167926,0.06060254,124.65,124.62,94.91901362]
[1766927173833,0.06060254,124.65,124.62,104.02901362]
[1766927174634,0.06060254,124.65,124.63,0.16595626]
[1766927195852,0.06060254,124.65,124.64,0.66]
[1766927201152,0.06060254,124.65,124.64,95.46]
[1766927203754,0.06060254,124.65,124.64,94.8]
[1766927203942,0.06060254,124.65,124.63,94.8]
[1766927205751,0.06060254,124.65,124.62,94.85901362]
[1766927212663,0.06060254,124.65,124.62,95.86901362]
[1766927215568,0.06060254,124.65,124.62,103.09691362]
[1766927215966,0.06060254,124.65,124.62,95.86901362]
[1766927217870,0.06060254,124.65,124.62,94.85901362]
[1766927218070,9.68060254,124.65,124.62,94.85901362]
[1766927225476,0.06060254,124.65,124.62,94.85901362]
[1766927227075,0.06060254,124.65,124.62,96.07901362]
[1766927229273,0.06060254,124.65,124.62,103.30791362]
[1766927229980,0.06060254,124.65,124.62,96.07901362]
[1766927234682,9.68060254,124.65,124.62,94.85901362]
[1766927234874,9.68060254,124.65,124.6,1.32]
[1766927235872,9.68060254,124.65,124.61,0.05290345]
[1766927236075,0.06060254,124.65,124.61,1.39290345]
[1766927238580,9.42060254,124.65,124.61,1.39290345]
[1766927240480,16.64760254,124.65,124.61,1.39290345]
[1766927250894,16.64760254,124.65,124.61,0.05290345]
[1766927251194,9.36,124.63,124.61,0.00290345]
[1766927251489,9.36,124.63,124.56,9.98682326]
[1766927251684,9.36,124.62,124.55,11.55682326]
[1766927251991,7.2297,124.6,124.55,1.57]
[1766927252291,0.05933255,124.59,124.56,0.02978427]
[1766927265804,0.05933255,124.59,124.56,1.74978427]
[1766927277717,0.05933255,124.59,124.56,0.02978427]
[1766927278613,9.80933255,124.59,124.56,0.02978427]
[1766927292125,0.05933255,124.59,124.56,1.94978427]
[1766927295420,10.15,124.63,124.56,1.94978427]
[1766927295724,10.15,124.63,124.56,1.92]
[1766927296425,0.05736025,124.61,124.58,0.0567726]
[1766927300732,0.05736025,124.61,124.58,7.2874726]
[1766927307034,0.05736025,124.61,124.58,9.2374726]
[1766927311436,0.05736025,124.61,124.58,7.2874726]
[1766927311638,10.20736025,124.61,124.58,0.0567726]
[1766927313438,10.20736025,124.61,124.53,94.84]
[1766927313638,10.15,124.61,124.53,94.84]
[1766927314132,112.4366,124.63,124.53,94.84]
[1766927314133,10.15,124.59,124.53,94.84]
[1766927314438,10.20246128,124.58,124.56,0.03234422]
[1766927315240,10.20246128,124.58,124.53,96.81]
[1766927315638,10.20246128,124.58,124.53,104.0435]
[1766927318939,10.15,124.57,124.5,14.98387174]
[1766927319143,10.15,124.57,124.47,1.96]
[1766927319144,10.15,124.54,124.47,1.96]
[1766927319343,10.20568899,124.52,124.47,1.96]
[1766927323942,10.20568899,124.52,124.45,1.94]
[1766927324139,0.0542756,124.5,124.45,1.94]
[1766927324839,0.0542756,124.5,124.44,94.86]
[1766927324840,10.2042756,124.5,124.44,94.86]
[1766927327543,10.2042756,124.5,124.43,1.94]
[1766927328047,112.6084756,124.5,124.41,94.9]
[1766927328358,9.95,124.46,124.41,94.9]
[1766927328543,9.95,124.46,124.4,7.2407]
[1766927328744,0.05777778,124.44,124.4,7.2407]
[1766927330354,0.05777778,124.44,124.39,1.95]
[1766927331842,0.05777778,124.44,124.39,9.1916]
[1766927332043,0.05777778,124.44,124.39,1.95]
[1766927332948,0.05777778,124.44,124.4,7.2407]
[1766927333255,0.05777778,124.44,124.39,1.95]
[1766927336061,0.05777778,124.44,124.4,3.66]
[1766927338956,0.05777778,124.44,124.4,10.9011]
[1766927341365,9.80777778,124.44,124.38,105.8519]
[1766927341865,9.80777778,124.44,124.38,10.9119]
[1766927342064,9.80777778,124.44,124.38,3.67]
[1766927342457,9.80777778,124.44,124.37,94.96]
[1766927342962,9.75,124.42,124.34,3.67]
[1766927343164,9.75,124.4,124.3,3.67]
[1766927343462,112.6002,124.45,124.33,3.67]
[1766927343666,9.75,124.43,124.33,3.67]
[1766927344255,9.75,124.43,124.37,0.05209539]
[1766927344661,9.75,124.41,124.37,0.05209539]
[1766927345366,0.050959,124.4,124.37,0.05209539]
[1766927347363,9.800959,124.4,124.37,0.05209539]
[1766927348666,9.75,124.39,124.32,10.01]
[1766927349261,9.75,124.39,124.32,17.2557]
[1766927349466,9.75,124.39,124.33,10.01]
[1766927349674,0.05128113,124.37,124.35,0.06145435]
[1766927352768,9.75,124.41,124.35,10.07145435]
[1766927353065,9.75,124.44,124.36,10.01]
[1766927353776,0.0568456,124.41,124.39,0.05948506]
[1766927354784,9.75,124.44,124.39,0.05948506]
[1766927355767,0.06017381,124.43,124.39,0.05948506]
[1766927357778,9.89017381,124.43,124.39,0.05948506]
[1766927357979,17.12967381,124.43,124.39,0.05948506]
[1766927358684,9.83,124.42,124.39,0.05948506]
[1766927359275,9.83,124.42,124.36,9.84]
[1766927360278,0.05986706,124.4,124.38,0.05811288]
[1766927370274,0.05986706,124.4,124.36,9.84]
[1766927371286,0.05986706,124.4,124.37,0.05372553]
[1766927376992,9.88986706,124.4,124.37,0.05372553]
[1766927377493,9.88986706,124.4,124.37,0.00372553]
[1766927378387,9.83,124.38,124.37,0.00372553]
[1766927379184,0.05986706,124.4,124.37,0.00372553]
[1766927387401,9.98986706,124.4,124.37,0.00372553]
[1766927388402,17.23106706,124.4,124.37,0.00372553]
[1766927388601,9.93,124.39,124.37,0.00372553]
[1766927391201,17.1718,124.39,124.37,0.00372553]
[1766927392309,9.93,124.38,124.37,0.00372553]
[1766927400016,104.81986706,124.4,124.37,0.00372553]
[1766927400917,9.79986706,124.4,124.37,0.00372553]
[1766927401616,17.04116706,124.4,124.37,0.00372553]
[1766927403720,9.79986706,124.4,124.37,0.00372553]
[1766927407824,17.04116706,124.4,124.37,0.00372553]
[1766927409529,9.74,124.39,124.37,0.00372553]
[1766927410429,9.74,124.38,124.37,0.00372553]
[1766927412625,16.9832,124.37,124.3,10.59]
[1766927413631,0.05303289,124.35,124.3,10.59]
[1766927416939,10.74303289,124.35,124.3,10.59]
[1766927418633,10.74303289,124.35,124.3,17.837]
[1766927420137,10.69,124.34,124.28,17.5981]
[1766927420438,0.06156389,124.32,124.28,17.5981]
[1766927422132,0.06156389,124.32,124.28,10.35]
[1766927426841,10.75156389,124.32,124.27,7.2482]
[1766927427043,10.75156389,124.32,124.27,17.5982]
[1766927428043,10.75156389,124.32,124.26,10.35]
[1766927428243,0.06108844,124.3,124.26,10.35]
[1766927429737,0.06108844,124.3,124.27,17.5986]
[1766927430346,10.69,124.34,124.28,17.5981]
[1766927431340,0.05534453,124.32,124.3,0.05181343]
[1766927436150,10.69,124.36,124.3,10.40181343]
[1766927437053,0.06025016,124.34,124.3,10.40181343]
[1766927437254,10.69,124.39,124.33,10.35]
[1766927437456,10.69,124.45,124.38,10.35]
[1766927438355,0.05978842,124.43,124.4,0.06119186]
[1766927441645,10.69,124.47,124.4,10.41119186]
[1766927441950,10.69,124.47,124.4,10.35]
[1766927442752,0.05895307,124.45,124.42,0.05321138]
[1766927445958,9.48895307,124.45,124.42,0.05321138]
[1766927447454,0.05895307,124.45,124.42,0.05321138]
[1766927448054,9.43,124.5,124.44,9.28]
[1766927448253,9.43,124.54,124.44,9.28]
[1766927449062,9.43,124.54,124.48,0.05653536]
[1766927449464,9.43,124.53,124.44,9.28]
[1766927450356,0.0590295,124.5,124.47,0.05391516]
[1766927450667,0.0590295,124.5,124.47,0.05430271]
[1766927452459,9.43,124.54,124.47,9.33430271]
[1766927452661,9.43,124.54,124.47,9.28]
[1766927453371,0.06110379,124.52,124.49,0.0543683]
[1766927453866,16.6615,124.57,124.49,9.3343683]
[1766927454072,16.6615,124.57,124.49,9.28]
[1766927454566,16.6615,124.57,124.49,16.5158]
[1766927454770,0.0552773,124.54,124.52,0.05469443]
[1766927455363,0.0552773,124.54,124.49,16.5158]
[1766927455364,9.43,124.53,124.48,7.236]
[1766927455571,9.43,124.53,124.46,9.28]
[1766927456566,0.05773268,124.51,124.48,0.05781952]
[1766927457162,9.48773268,124.51,124.48,0.05781952]
[1766927457361,9.48773268,124.51,124.44,9.28]
[1766927458368,9.48773268,124.51,124.46,0.06130324]
[1766927458571,16.72263268,124.51,124.46,0.06130324]
[1766927458768,9.1,124.5,124.46,0.06130324]
[1766927462275,0.05773268,124.51,124.46,0.06130324]
[1766927462468,0.05773268,124.51,124.46,9.44130324]
[1766927463672,0.05773268,124.51,124.46,16.67890324]
[1766927464176,0.05773268,124.51,124.47,9.38]
[1766927464378,0.05773268,124.51,124.47,16.617]
[1766927467483,0.05773268,124.51,124.48,7.2364]
[1766927472185,0.05773268,124.51,124.48,16.6164]
[1766927473078,9.1,124.55,124.49,16.6157]
[1766927474083,0.06111835,124.53,124.51,0.05927095]
[1766927484379,0.06111835,124.53,124.51,9.30927095]
[1766927484980,0.06111835,124.53,124.51,16.54387095]
[1766927488289,0.06111835,124.53,124.52,7.2342]
[1766927489382,0.06111835,124.53,124.51,9.30927095]
[1766927491991,0.06111835,124.53,124.51,16.54407095]
[1766927494696,0.06111835,124.53,124.52,9.25]
[1766927497597,0.06111835,124.53,124.52,16.4842]
[1766927500901,0.06111835,124.53,124.52,9.25]
[1766927501691,0.06111835,124.53,124.51,94.95927095]
[1766927508003,0.06111835,124.53,124.51,0.05927095]
[1766927521612,0.06111835,124.53,124.51,8.14927095]
[1766927523118,0.06111835,124.53,124.51,15.38407095]
[1766927523426,0.06111835,124.53,124.52,8.09]
[1766927526421,0.06111835,124.53,124.49,8.09]
[1766927527514,0.06111835,124.53,124.5,0.05095823]
[1766927536134,7.74111835,124.53,124.5,0.00095823]
[1766927536734,7.74111835,124.53,124.47,7.92]
[1766927537726,7.68,124.52,124.49,0.05583218]
[1766927558159,0.06111835,124.53,124.49,0.05583218]
[1766927558362,0.06111835,124.53,124.49,7.97583218]
[1766927565764,0.06111835,124.53,124.5,7.49]
[1766927609120,7.18111835,124.53,124.49,0.05583218]
[1766927613721,14.41481835,124.53,124.49,0.05583218]
[1766927627334,7.18111835,124.53,124.49,0.05583218]
[1766927648159,7.19,124.52,124.46,109.2275]
[1766927648554,7.19,124.52,124.46,94.92]
[1766927649261,0.0603733,124.5,124.48,0.05215742]
[1766927649444,0.05465492,124.5,124.48,0.05907013]
[1766927660062,7.31465492,124.5,124.45,7.07]
[1766927660270,7.31465492,124.5,124.43,102.26]
[1766927660662,7.31465492,124.5,124.43,7.32]
[1766927660964,7.31465492,124.5,124.43,102.26]
[1766927661166,7.31465492,124.5,124.45,0.05278196]
[1766927661669,7.26,124.49,124.45,0.05278196]
[1766927668875,0.05465492,124.5,124.45,7.33278196]
[1766927669072,7.31465492,124.5,124.45,7.33278196]
[1766927669769,7.31465492,124.5,124.45,14.57088196]
[1766927675281,7.31465492,124.5,124.45,7.33278196]
[1766927677188,7.31465492,124.5,124.45,0.05278196]
[1766927678579,14.55005492,124.5,124.45,0.05278196]
[1766927679785,14.55005492,124.5,124.45,7.29278196]
[1766927679988,7.31465492,124.5,124.45,7.29278196]
[1766927691096,7.31465492,124.5,124.45,0.05278196]
[1766927691304,6.71,124.48,124.4,6.99]
[1766927691702,6.71,124.46,124.4,6.99]
[1766927692103,6.71,124.46,124.4,14.231]
[1766927692305,0.05996401,124.44,124.42,0.06060583]
[1766927731338,6.79,124.46,124.42,7.02060583]
[1766927731638,102.1765,124.49,124.42,102.00060583]
[1766927731639,6.79,124.48,124.42,102.00060583]
[1766927732344,0.0518312,124.46,124.42,102.00060583]
[1766927735446,0.0518312,124.46,124.43,6.96]
[1766927735849,0.0018312,124.46,124.43,6.96]
[1766927737547,0.0018312,124.46,124.43,14.1994]
[1766927744149,0.0018312,124.46,124.44,6.96]
[1766927744350,0.0018312,124.46,124.45,94.96]
[1766927759257,0.0018312,124.46,124.43,101.91]
[1766927759454,0.0018312,124.46,124.43,6.95]
[1766927759657,6.7718312,124.46,124.43,94.96]
[1766927760951,6.7718312,124.46,124.42,0.06060583]
[1766927765259,6.7718312,124.46,124.42,6.99060583]
[1766927765464,0.0018312,124.46,124.42,6.99060583]
[1766927767766,0.0018312,124.46,124.43,6.93]
[1766927773475,0.0018312,124.46,124.44,6.92]
[1766927773867,0.0018312,124.46,124.45,101.88]
[1766927778874,0.0018312,124.46,124.45,102.1983]
[1766927782273,0.0018312,124.46,124.45,7.2383]
[1766927782574,0.0018312,124.46,124.45,102.1783]
[1766927782775,0.0018312,124.46,124.45,94.94]
[1766927783181,0.0018312,124.46,124.45,101.84]
[1766927783882,0.0018312,124.46,124.45,94.94]
[1766927784482,0.0018312,124.46,124.45,101.84]
[1766927784982,0.0018312,124.46,124.45,94.94]
[1766927785585,0.0018312,124.46,124.45,101.84]
[1766927785785,0.0018312,124.46,124.45,94.94]
[1766927788976,0.0018312,124.46,124.45,101.84]
[1766927796994,0.0018312,124.46,124.45,94.94]
[1766927798096,0.0018312,124.46,124.45,101.83]
[1766927800495,0.0018312,124.46,124.45,94.94]
[1766927800995,0.0018312,124.46,124.45,101.83]
[1766927801195,0.0018312,124.46,124.45,94.94]
[1766927813910,0.0018312,124.46,124.45,102.1783]
[1766927820209,13.8242,124.53,124.45,102.1783]
[1766927820610,13.8242,124.53,124.46,6.86]
[1766927821222,0.05722828,124.51,124.48,0.05704664]
[1766927830329,6.64722828,124.51,124.48,0.05704664]
[1766927830526,13.88202828,124.51,124.45,94.94]
[1766927831426,13.88202828,124.51,124.47,0.05080308]
[1766927863053,7.17,124.5,124.47,0.05080308]
[1766927873667,7.17,124.5,124.47,0.00080308]
[1766927997194,7.17,124.5,124.44,10.0494397]
[1766927997696,7.17,124.5,124.44,17.2882397]
[1766927997994,7.17,124.5,124.45,10.0494397]
[1766927998196,7.17,124.5,124.46,0.0612537]
[1766927999197,0.0506929,124.49,124.46,0.0612537]
[1766927999396,6.2006929,124.49,124.46,0.0612537]
[1766928020809,6.2006929,124.49,124.46,0.0012537]
[1766928022909,5.63,124.48,124.43,10.0494397]
[1766928023115,5.63,124.48,124.42,10.0494397]
[1766928024014,5.68767337,124.46,124.44,0.00216012]
[1766928024215,5.63,124.46,124.44,0.00216012]
[1766928025019,5.68982096,124.46,124.44,0.00216012]
[1766928058448,7.236,124.49,124.44,0.00216012]
[1766928059351,0.05807348,124.48,124.44,0.00216012]
[1766928060350,5.00807348,124.48,124.44,0.00216012]
[1766928068954,5.00807348,124.48,124.44,10.05159982]
[1766928070457,5.00807348,124.48,124.44,17.29039982]
[1766928072256,5.00807348,124.48,124.44,7.24096012]
[1766928073659,5.00807348,124.48,124.44,17.29039982]
[1766928074060,5.00807348,124.48,124.44,7.24096012]
[1766928082167,5.00807348,124.48,124.43,10.0494397]
[1766928083166,5.00807348,124.48,124.44,0.05634175]
[1766928083566,5.00807348,124.48,124.44,7.29514175]
[1766928086168,5.00807348,124.48,124.44,0.05634175]
[1766928121690,0.05807348,124.48,124.44,4.57634175]
[1766928121889,4.95,124.5,124.45,10.0494397]
[1766928122696,4.95,124.5,124.45,17.2877397]
[1766928122898,0.06101084,124.49,124.45,21.8077397]
[1766928124298,112.4855,124.58,124.46,4.52]
[1766928124490,207.4335,124.57,124.47,4.52]
[1766928125395,0.05890441,124.53,124.51,0.00140439]
[1766928126395,4.95,124.52,124.51,0.00140439]
[1766928128698,0.05890441,124.53,124.51,0.00140439]
[1766928130691,3.95890441,124.53,124.51,0.00140439]
[1766928135306,0.05890441,124.53,124.51,0.00140439]
[1766928146020,4.25890441,124.53,124.51,0.00140439]
[1766928176539,4.25890441,124.53,124.48,10.0494397]
[1766928177545,4.25890441,124.53,124.49,0.05333243]
[1766928198976,4.91,124.52,124.49,0.05333243]
[1766928209880,0.05890441,124.53,124.49,5.20333243]
[1766928210185,5.0,124.52,124.47,8.89639924]
[1766928210982,5.0,124.52,124.48,0.05457469]
[1766928211688,0.05890441,124.53,124.48,12.44097469]
[1766928212172,5.02890441,124.53,124.48,12.44097469]
[1766928216588,0.05890441,124.53,124.49,12.3859]
[1766928216883,0.05890441,124.53,124.5,5.15]
[1766928217288,0.05890441,124.53,124.51,12.3848]
[1766928217488,0.05890441,124.53,124.51,12.43899356]
[1766928223197,0.05890441,124.53,124.52,94.9]
[1766928223388,0.05890441,124.53,124.52,100.05]
[1766928231793,0.05890441,124.53,124.52,107.2842]
[1766928239304,0.05890441,124.53,124.52,102.1142]
[1766928250533,2.21e-05,124.55,124.52,7.2342]
[1766928250726,2.21e-05,124.55,124.51,94.88]
[1766928251524,0.05211962,124.54,124.52,0.06027195]
[1766928253328,1.962e-05,124.54,124.52,7.23447195]
[1766928254426,0.06099609,124.54,124.52,7.23447195]
[1766928255230,0.06099609,124.54,124.52,0.00027195]
[1766928262140,0.06097647,124.54,124.52,0.00027195]
[1766928271440,0.29,124.58,124.52,5.29027195]
[1766928271641,0.29,124.58,124.52,5.29]
[1766928272340,0.0561887,124.56,124.54,0.05957002]
[1766928272734,0.3761887,124.56,124.52,12.524]
[1766928273746,0.3761887,124.56,124.53,0.0585256]
[1766928280648,0.0561887,124.56,124.53,0.0585256]
[1766928291862,0.0561887,124.56,124.53,5.7285256]
[1766928293863,7.2302,124.59,124.53,5.7285256]
[1766928293864,7.8102,124.59,124.53,5.7285256]
[1766928294950,0.05120055,124.57,124.53,5.7285256]
[1766928296263,0.05120055,124.57,124.53,12.9621256]
[1766928296659,0.58,124.59,124.54,5.67]
[1766928296860,1.54068578,124.64,124.54,5.67]
[1766928296861,0.61,124.61,124.54,5.67]
[1766928297559,0.63,124.6,124.54,12.9028]
[1766928297764,0.0616916,124.58,124.56,0.0548242]
[1766928302671,0.0016916,124.58,124.56,5.7248242]
[1766928307775,0.0016916,124.58,124.52,85.47441449]
[1766928308773,0.0016916,124.58,124.54,0.05272465]
[1766928309568,0.63,124.6,124.55,7.2324]
[1766928309769,0.63,124.6,124.55,12.9024]
[1766928310470,0.0547131,124.59,124.55,12.9024]
[1766928313172,0.0547131,124.59,124.56,5.67]
[1766928318383,0.0547131,124.59,124.56,12.9018]
[1766928319080,0.0547131,124.59,124.57,6.18]
[1766928319380,0.0547131,124.59,124.57,6.23172928]
[1766928320180,6.01,124.62,124.57,13.46292928]
[1766928320381,6.01,124.62,124.58,6.18]
[1766928321177,0.05597158,124.61,124.58,13.4107]
[1766928321381,0.05597158,124.61,124.58,13.46492042]
[1766928323687,7.27068578,124.64,124.59,6.18]
[1766928324786,0.05568049,124.63,124.59,6.18]
[1766928331890,0.05568049,124.63,124.58,0.05422042]
[1766928331891,13.01358049,124.63,124.58,0.05422042]
[1766928333793,5.73,124.62,124.58,0.05422042]
[1766928336603,7.2291,124.61,124.58,0.05422042]
[1766928340005,12.9591,124.61,124.58,0.05422042]
[1766928340807,5.73,124.61,124.58,0.05422042]
[1766928350807,12.9591,124.61,124.56,6.18]
[1766928352018,0.05938111,124.6,124.57,0.061319]
[1766928358109,6.46938111,124.6,124.57,0.061319]
[1766928374235,13.69908111,124.6,124.57,0.001319]
[1766928386850,6.46938111,124.6,124.57,0.001319]
[1766928389549,6.46938111,124.6,124.54,13.1626]
[1766928389550,6.48,124.59,124.54,5.93]
[1766928390553,6.48,124.59,124.55,0.0513587]
[1766928391350,13.7102,124.59,124.55,0.0513587]
[1766928391550,6.48,124.58,124.55,0.0513587]
[1766928423062,6.36938111,124.6,124.55,0.0513587]
[1766928424768,6.36938111,124.6,124.55,7.2837587]
[1766928438874,6.36938111,124.6,124.55,0.0513587]
[1766928439877,13.59898111,124.6,124.55,0.0513587]
[1766928440179,6.36938111,124.6,124.55,0.0013587]
[1766928441578,6.64,124.58,124.55,0.0013587]
[1766928452289,6.64,124.57,124.51,7.2344]
[1766928452780,6.64,124.56,124.5,6.69]
[1766928453477,0.05543622,124.54,124.52,0.05510608]
[1766928454087,6.69543622,124.54,124.48,8.89024015]
[1766928455082,6.69543622,124.54,124.5,0.05955049]
[1766928483310,6.69543622,124.54,124.5,13.63475049]
[1766928483509,0.05543622,124.54,124.51,6.34]
[1766928484310,0.05543622,124.54,124.51,13.5745]
[1766928486011,6.86,124.58,124.52,13.574]
[1766928487015,0.05500814,124.56,124.54,0.05188838]
[1766928507935,8.14e-06,124.56,124.54,0.05188838]
[1766928508131,8.14e-06,124.56,124.54,0.00188838]
[1766928509132,0.05517785,124.56,124.54,0.00188838]
[1766928523249,1.92517785,124.56,124.54,0.00188838]
[1766928575288,1.92517785,124.56,124.5,22.00387174]
[1766928575590,1.92517785,124.56,124.49,7.2356]
[1766928575780,1.92517785,124.56,124.49,14.4756]
[1766928576381,1.92517785,124.56,124.51,0.06004509]
[1766928576581,9.6825,124.55,124.51,0.06004509]
[1766928577279,2.46,124.54,124.51,0.06004509]
[1766928577691,2.46,124.54,124.51,4.509e-05]
[1766928605116,2.63517785,124.56,124.51,6.95004509]
[1766928606811,2.63517785,124.56,124.51,14.18474509]
[1766928607816,2.63517785,124.56,124.52,7.234]
[1766928608006,0.05517785,124.56,124.52,6.95]
[1766928608910,2.6,124.58,124.53,6.95]
[1766928609714,2.6,124.58,124.53,14.1835]
[1766928610015,0.05109287,124.57,124.54,0.05356133]
[1766928610415,1.28684559,124.58,124.54,7.28646133]
[1766928610610,7.2287,124.62,124.54,14.23646133]
[1766928610812,7.2287,124.62,124.54,14.1829]
[1766928611420,0.05835453,124.59,124.57,0.06047098]
[1766928625232,0.05835453,124.59,124.57,7.29167098]
[1766928634037,3.11121284,124.64,124.58,7.35]
[1766928635042,0.0589477,124.62,124.6,0.05971321]
[1766928641345,1.52,124.64,124.6,7.40971321]
[1766928642253,0.05659299,124.63,124.6,7.40971321]
[1766928644054,0.05659299,124.63,124.61,7.35]
[1766928645347,0.05659299,124.63,124.61,14.5788]
[1766928645555,0.05659299,124.63,124.61,7.35]
[1766928656867,0.05659299,124.63,124.6,7.28921321]
[1766928656868,0.05659299,124.63,124.6,14.77921321]
[1766928664273,0.05659299,124.63,124.6,0.05971321]
[1766928671982,1.85,124.71,124.62,7.49]
[1766928672372,1.85,124.71,124.63,7.49]
[1766928672768,1.85,124.71,124.65,7.2266]
[1766928672973,0.0549135,124.69,124.67,0.05923519]
[1766928675279,1.9049135,124.69,124.64,14.7468]
[1766928676181,1.9049135,124.69,124.65,0.06024431]
[1766928683689,1.9049135,124.69,124.64,14.7468]
[1766928683690,7.2255,124.67,124.6,17.48624613]
[1766928683891,7.2255,124.67,124.6,7.52]
[1766928684696,0.05884119,124.65,124.62,0.05246952]
[1766928689098,0.05884119,124.65,124.62,14.80076952]
[1766928689300,7.2248,124.69,124.63,7.52]
[1766928690204,0.05155987,124.67,124.65,0.05673068]
[1766928698506,0.00155987,124.67,124.65,7.57673068]
[1766928700710,0.00155987,124.67,124.65,14.80333068]
[1766928702212,0.00155987,124.67,124.65,7.57673068]
[1766928703210,0.00155987,124.67,124.65,14.80333068]
[1766928703708,0.00155987,124.67,124.66,7.52]
[1766928711117,0.00155987,124.67,124.66,102.32]
[1766928719217,0.00155987,124.67,124.66,7.52]